fUST/lending_fUST_20240713
["ID","MTS","AMOUNT","RATE_DAILY","PERIOD"]
[331924137,1720854635926,-500.0,0.00024657,2]
[331924138,1720854635937,-500.0,0.00024657,2]
[331924139,1720854635946,-500.0,0.00024657,2]
[331924140,1720854635955,-500.0,0.00024657,2]
[331924141,1720854635965,-500.0,0.00024657,2]
[331924142,1720854635974,-950.7,0.00024657,2]
[331924143,1720854635984,-500.0,0.00024657,2]
[331924144,1720854635994,-500.0,0.00024657,2]
[331924145,1720854636004,-151.0,0.00024657,7]
[331924146,1720854636013,-500.0,0.00024657,2]
[331924147,1720854636023,-151.0,0.00024657,7]
[331924148,1720854636032,-151.0,0.00024657,7]
[331924149,1720854636041,-151.0,0.00024657,7]
[331924150,1720854636050,-151.0,0.00024657,7]
[331924151,1720854636059,-1037.75,0.00024657,2]
[331924152,1720854636070,-1037.75,0.00024657,2]
[331924153,1720854636083,-500.0,0.00024657,2]
[331924154,1720854636092,-513.6588873,0.00024657,2]
[331924155,1720854636101,-500.0,0.00024657,2]
[331924156,1720854636111,-500.0,0.00024657,2]
[331924157,1720854636121,-191.25,0.00024657,2]
[331924158,1720854636132,-500.0,0.00024657,2]
[331924159,1720854636141,-598.2279812,0.00024657,2]
[331924160,1720854636152,-500.0,0.00024657,2]
[331924161,1720854636162,-513.18939132,0.00024657,2]
[331924162,1720854636171,-500.0,0.00024657,2]
[331924163,1720854636180,-217.43599985,0.00024657,2]
[331924164,1720854636189,-500.0,0.00024657,2]
[331924165,1720854636198,-519.18528763,0.00024657,2]
[331924166,1720854636207,-500.0,0.00024657,2]
[331924167,1720854636217,-500.0,0.00024657,2]
[331924168,1720854636226,-500.0,0.00024657,2]
[331924169,1720854636236,-567.79333098,0.00024657,2]
[331924170,1720854636246,-500.0,0.00024657,2]
[331924171,1720854636255,-500.0,0.00024657,2]
[331924172,1720854636264,-500.0,0.00024657,2]
[331924173,1720854636274,-505.4,0.00024657,2]
[331924174,1720854636283,-500.0,0.00024657,2]
[331924175,1720854636292,-500.0,0.00024657,2]
[331924176,1720854636302,-151.0,0.00024657,7]
[331924177,1720854636311,-151.0,0.00024657,7]
[331924178,1720854636320,-151.0,0.00024657,7]
[331924179,1720854636329,-527.62,0.00024657,2]
[331924180,1720854636339,-151.0,0.00024657,7]
[331924181,1720854636349,-1714.24,0.00024657,2]
[331924182,1720854636358,-151.0,0.00024657,7]
[331924183,1720854636368,-151.0,0.00024657,7]
[331924184,1720854636377,-151.0,0.00024657,7]
[331924185,1720854636387,-151.0,0.00024657,7]
[331924186,1720854636396,-151.0,0.00024657,7]
[331924187,1720854636405,-151.0,0.00024657,7]
[331924188,1720854636414,-200.763378,0.00024657,7]
[331924189,1720854636423,-500.0,0.00024657,2]
[331924190,1720854636432,-500.0,0.00024657,2]
[331924191,1720854636441,-1213.13,0.00024657,2]
[331924192,1720854636451,-502.46,0.00024657,2]
[331924193,1720854636460,-478.573973,0.00024657,7]
[331924194,1720854636469,-478.573973,0.00024657,7]
[331924195,1720854636479,-478.573973,0.00024657,7]
[331924196,1720854636487,-151.0,0.00024657,7]
[331924197,1720854636497,-478.573973,0.00024657,7]
[331924198,1720854636506,-151.0,0.00024657,7]
[331924199,1720854636515,-478.573973,0.00024657,7]
[331924200,1720854636525,-151.0,0.00024657,7]
[331924201,1720854636534,-478.573973,0.00024657,7]
[331924202,1720854636543,-151.0,0.00024657,7]
[331924203,1720854636552,-151.0,0.00024657,7]
[331924204,1720854636561,-500.0,0.00024657,2]
[331924205,1720854636570,-151.0,0.00024657,7]
[331924206,1720854636580,-478.573973,0.00024657,7]
[331924207,1720854636589,-533.493169,0.00024657,7]
[331924208,1720854636598,-478.573973,0.00024657,7]
[331924209,1720854636608,-533.493169,0.00024657,7]
[331924210,1720854636617,-478.573973,0.00024657,7]
[331924211,1720854636626,-533.493169,0.00024657,7]
[331924212,1720854636637,-478.573973,0.00024657,7]
[331924213,1720854636646,-478.573973,0.00024657,7]
[331924214,1720854636656,-533.493169,0.00024657,7]
[331924215,1720854636666,-478.573973,0.00024657,7]
[331924216,1720854636676,-533.493169,0.00024657,7]
[331924217,1720854636686,-533.493169,0.00024657,7]
[331924218,1720854636695,-533.493169,0.00024657,7]
[331924219,1720854636705,-521.41184903,0.00024657,2]
[331924220,1720854636714,-533.493169,0.00024657,7]
[331924221,1720854636723,-533.493169,0.00024657,7]
[331924222,1720854636733,-533.493169,0.00024657,7]
[331924223,1720854636743,-533.493169,0.00024657,7]
[331924224,1720854636752,-533.493169,0.00024657,7]
[331924225,1720854636762,-151.0,0.00024657,7]
[331924226,1720854636771,-151.0,0.00024657,7]
[331924227,1720854636782,-151.0,0.00024657,7]
[331924228,1720854636791,-151.0,0.00024657,7]
[331924229,1720854636800,-151.0,0.00024657,7]
[331924230,1720854636810,-291.665378,0.00024657,7]
[331924231,1720854636819,-500.0,0.00024657,2]
[331924232,1720854636828,-500.0,0.00024657,2]
[331924233,1720854636838,-500.0,0.00024657,2]
[331924234,1720854636847,-500.0,0.00024657,2]
[331924235,1720854636856,-615.13030488,0.00024657,2]
[331924236,1720854636866,-509.88182032,0.00024657,2]
[331924237,1720854636875,-500.0,0.00024657,2]
[331924238,1720854636886,-519.44487214,0.00024657,2]
[331924239,1720854636895,-500.0,0.00024657,2]
[331924240,1720854636905,-500.0,0.00024657,2]
[331924241,1720854636914,-500.0,0.00024657,2]
[331924242,1720854636923,-500.0,0.00024657,2]
[331924243,1720854636933,-515.53971912,0.00024657,2]
[331924244,1720854636943,-500.0,0.00024657,2]
[331924245,1720854636952,-519.90925514,0.00024657,2]
[331924246,1720854636961,-18063.93,0.00024657,2]
[331924247,1720854636971,-500.0,0.00024657,2]
[331924248,1720854636980,-470.06643577,0.00024657,2]
[331924249,1720854636989,-500.0,0.00024657,2]
[331924250,1720854636998,-500.0,0.00024657,2]
[331924251,1720854637009,-500.0,0.00024657,2]
[331924252,1720854637018,-500.0,0.00024657,2]
[331924253,1720854637027,-639.53850628,0.00024657,2]
[331924254,1720854637037,-500.0,0.00024657,2]
[331924255,1720854637046,-151.981939,0.00024657,7]
[331924256,1720854637055,-151.0,0.00024657,7]
[331924257,1720854637064,-151.0,0.00024657,7]
[331924258,1720854637078,-151.0,0.00024657,7]
[331924259,1720854637087,-151.0,0.00024657,7]
[331924260,1720854637096,-151.0,0.00024657,7]
[331924261,1720854637106,-151.0,0.00024657,7]
[331924262,1720854637115,-151.0,0.00024657,7]
[331924263,1720854637124,-151.0,0.00024657,7]
[331924264,1720854637134,-500.0,0.00024657,2]
[331924265,1720854637143,-175.147479,0.00024657,7]
[331924266,1720854637154,-2877.79,0.00024657,2]
[331924267,1720854637166,-287.667283,0.00024657,7]
[331924268,1720854637175,-287.667283,0.00024657,7]
[331924269,1720854637185,-287.667283,0.00024657,7]
[331924270,1720854637194,-287.667283,0.00024657,7]
[331924271,1720854637203,-287.667283,0.00024657,7]
[331924272,1720854637212,-500.0,0.00024657,2]
[331924273,1720854637222,-287.667283,0.00024657,7]
[331924274,1720854637231,-287.667283,0.00024657,7]
[331924275,1720854637241,-287.667283,0.00024657,7]
[331924276,1720854637250,-287.667283,0.00024657,7]
[331924277,1720854637259,-287.667283,0.00024657,7]
[331924278,1720854637269,-287.667283,0.00024657,7]
[331924279,1720854637278,-287.667283,0.00024657,7]
[331924280,1720854637287,-287.667283,0.00024657,7]
[331924281,1720854637297,-287.667283,0.00024657,7]
[331924282,1720854637306,-287.667283,0.00024657,7]
[331924283,1720854637316,-500.0,0.00024657,2]
[331924284,1720854637325,-287.667283,0.00024657,7]
[331924285,1720854637335,-500.0,0.00024657,2]
[331924286,1720854637344,-518.40716363,0.00024657,2]
[331924287,1720854637353,-500.0,0.00024657,2]
[331924288,1720854637362,-500.0,0.00024657,2]
[331924289,1720854637371,-284.673009,0.00024657,7]
[331924290,1720854637381,-284.673009,0.00024657,7]
[331924291,1720854637391,-284.673009,0.00024657,7]
[331924292,1720854637400,-284.673009,0.00024657,7]
[331924293,1720854637410,-284.673009,0.00024657,7]
[331924294,1720854637419,-284.673009,0.00024657,7]
[331924295,1720854637429,-284.673009,0.00024657,7]
[331924296,1720854637437,-284.673009,0.00024657,7]
[331924297,1720854637447,-284.673009,0.00024657,7]
[331924298,1720854637457,-284.673009,0.00024657,7]
[331924299,1720854637466,-284.673009,0.00024657,7]
[331924300,1720854637476,-284.673009,0.00024657,7]
[331924301,1720854637486,-284.673009,0.00024657,7]
[331924302,1720854637495,-500.0,0.00024657,2]
[331924303,1720854637505,-284.673009,0.00024657,7]
[331924304,1720854637514,-500.0,0.00024657,2]
[331924305,1720854637523,-284.673009,0.00024657,7]
[331924306,1720854637532,-284.673009,0.00024657,7]
[331924307,1720854637541,-337.480785,0.00024657,7]
[331924308,1720854637550,-337.480785,0.00024657,7]
[331924309,1720854637560,-337.480785,0.00024657,7]
[331924310,1720854637569,-584.4,0.00024657,2]
[331924311,1720854637578,-337.480785,0.00024657,7]
[331924312,1720854637587,-337.480785,0.00024657,7]
[331924313,1720854637596,-337.480785,0.00024657,7]
[331924314,1720854637606,-337.480785,0.00024657,7]
[331924315,1720854637615,-337.480785,0.00024657,7]
[331924316,1720854637625,-500.0,0.00024657,2]
[331924317,1720854637636,-337.480785,0.00024657,7]
[331924318,1720854637646,-337.480785,0.00024657,7]
[331924319,1720854637656,-337.480785,0.00024657,7]
[331924320,1720854637665,-500.0,0.00024657,2]
[331924321,1720854637675,-551.09086,0.00024657,7]
[331924322,1720854637685,-551.09086,0.00024657,7]
[331924323,1720854637694,-337.480785,0.00024657,7]
[331924324,1720854637705,-337.480785,0.00024657,7]
[331924325,1720854637714,-551.09086,0.00024657,7]
[331924326,1720854637724,-337.480785,0.00024657,7]
[331924327,1720854637734,-551.09086,0.00024657,7]
[331924328,1720854637744,-337.480785,0.00024657,7]
[331924329,1720854637753,-551.09086,0.00024657,7]
[331924330,1720854637763,-337.480785,0.00024657,7]
[331924331,1720854637773,-551.09086,0.00024657,7]
[331924332,1720854637782,-551.09086,0.00024657,7]
[331924333,1720854637793,-551.09086,0.00024657,7]
[331924334,1720854637804,-500.0,0.00024657,2]
[331924335,1720854637815,-551.09086,0.00024657,7]
[331924336,1720854637824,-551.09086,0.00024657,7]
[331924337,1720854637835,-551.09086,0.00024657,7]
[331924338,1720854637844,-551.09086,0.00024657,7]
[331924339,1720854637854,-551.09086,0.00024657,7]
[331924340,1720854637863,-151.0,0.00024657,7]
[331924341,1720854637873,-551.09086,0.00024657,7]
[331924342,1720854637882,-153.877893,0.00024657,7]
[331924343,1720854637891,-500.0,0.00024657,2]
[331924344,1720854637900,-151.0,0.00024657,7]
[331924345,1720854637911,-551.09086,0.00024657,7]
[331924346,1720854637920,-551.09086,0.00024657,7]
[331924347,1720854637930,-500.0,0.00024657,2]
[331924348,1720854637940,-500.0,0.00024657,2]
[331924349,1720854637949,-151.0,0.00024657,7]
[331924350,1720854637959,-151.0,0.00024657,7]
[331924351,1720854637968,-151.0,0.00024657,7]
[331924352,1720854637977,-151.0,0.00024657,7]
[331924353,1720854637988,-500.0,0.00024657,2]
[331924354,1720854637999,-151.0,0.00024657,7]
[331924355,1720854638008,-151.0,0.00024657,7]
[331924356,1720854638018,-151.0,0.00024657,7]
[331924357,1720854638028,-151.0,0.00024657,7]
[331924358,1720854638038,-151.0,0.00024657,7]
[331924359,1720854638048,-151.0,0.00024657,7]
[331924360,1720854638058,-151.0,0.00024657,7]
[331924361,1720854638068,-151.0,0.00024657,7]
[331924362,1720854638083,-151.0,0.00024657,7]
[331924363,1720854638094,-151.0,0.00024657,7]
[331924364,1720854638104,-248.347098,0.00024657,7]
[331924368,1720854638220,-500.0,0.00024657,2]
[331924369,1720854638230,-500.0,0.00024657,2]
[331924370,1720854638240,-500.0,0.00024657,2]
[331924371,1720854638252,-517.41386182,0.00024658,2]
[331924372,1720854638263,-159.78913,0.00024682,7]
[331924373,1720854638273,-151.0,0.00024682,7]
[331924374,1720854638282,-478.573973,0.00024682,7]
[331924375,1720854638292,-260.195544,0.00024682,7]
[331924376,1720854638302,-478.573973,0.00024682,7]
[331924377,1720854638311,-533.493169,0.00024682,7]
[331924379,1720854638321,-533.493169,0.00024682,7]
[331924381,1720854638331,-153.0,0.00024752,2]
[331924382,1720854638340,-153.0,0.00024752,2]
[331924383,1720854638352,-153.0,0.00024752,2]
[331924384,1720854638362,-153.0,0.00024752,2]
[331924385,1720854638373,-153.0,0.00024752,2]
[331924386,1720854638384,-153.0,0.00024752,2]
[331924388,1720854638395,-153.0,0.00024752,2]
[331924390,1720854638405,-153.0,0.00024752,2]
[331924391,1720854638417,-153.0,0.00024752,2]
[331924392,1720854638428,-153.0,0.00024752,2]
[331924393,1720854638439,-153.0,0.00024752,2]
[331924394,1720854638449,-153.0,0.00024752,2]
[331924395,1720854638460,-153.0,0.00024752,2]
[331924397,1720854638469,-153.0,0.00024752,2]
[331924398,1720854638479,-151.0,0.00024752,7]
[331924399,1720854638488,-478.573973,0.00024752,7]
[331924400,1720854638497,-478.573973,0.00024752,7]
[331924401,1720854638507,-533.493169,0.00024752,7]
[331924402,1720854638517,-533.493169,0.00024752,7]
[331924403,1720854638526,-151.0,0.00024752,7]
[331924404,1720854638536,-287.667283,0.00024752,7]
[331924405,1720854638545,-287.667283,0.00024752,7]
[331924406,1720854638555,-284.673009,0.00024752,7]
[331924408,1720854638564,-284.673009,0.00024752,7]
[331924410,1720854638574,-337.480785,0.00024752,7]
[331924412,1720854638584,-337.480785,0.00024752,7]
[331924414,1720854638593,-551.09086,0.00024752,7]
[331924416,1720854638603,-551.09086,0.00024752,7]
[331924418,1720854638612,-153.0,0.00024752,2]
[331924420,1720854638622,-153.0,0.00024752,2]
[331924422,1720854638631,-153.0,0.00024752,2]
[331924424,1720854638641,-153.0,0.00024752,2]
[331924426,1720854638651,-153.0,0.00024752,2]
[331924428,1720854638661,-153.0,0.00024752,2]
[331924430,1720854638670,-153.0,0.00024752,2]
[331924432,1720854638679,-153.0,0.00024752,2]
[331924434,1720854638689,-153.0,0.00024752,2]
[331924436,1720854638699,-153.0,0.00024752,2]
[331924438,1720854638711,-153.0,0.00024752,2]
[331924441,1720854638721,-153.0,0.00024752,2]
[331924443,1720854638731,-153.0,0.00024752,2]
[331924445,1720854638741,-153.0,0.00024752,2]
[331924447,1720854638751,-153.0,0.00024752,2]
[331924449,1720854638760,-153.0,0.00024752,2]
[331924451,1720854638772,-153.0,0.00024752,2]
[331924453,1720854638782,-153.0,0.00024752,2]
[331924455,1720854638792,-153.0,0.00024752,2]
[331924457,1720854638801,-153.0,0.00024752,2]
[331924459,1720854638813,-153.0,0.00024752,2]
[331924461,1720854638823,-153.0,0.00024752,2]
[331924463,1720854638832,-153.0,0.00024752,2]
[331924466,1720854638842,-153.0,0.00024752,2]
[331924468,1720854638852,-153.0,0.00024752,2]
[331924470,1720854638862,-153.0,0.00024752,2]
[331924472,1720854638871,-153.0,0.00024752,2]
[331924474,1720854638881,-153.0,0.00024752,2]
[331924476,1720854638891,-2714.44808847,0.0002476,2]
[331924477,1720854638902,-151.0,0.0002476,7]
[331924479,1720854638914,-287.667283,0.0002476,7]
[331924481,1720854638923,-287.667275,0.0002476,7]
[331924482,1720854638933,-284.673009,0.0002476,7]
[331924483,1720854638945,-284.673003,0.0002476,7]
[331924484,1720854638957,-337.480785,0.0002476,7]
[331924485,1720854638966,-337.480779,0.0002476,7]
[331924486,1720854638976,-551.09086,0.0002476,7]
[331924487,1720854638986,-551.090866,0.0002476,7]
[331924488,1720854638995,-16680.2244339,0.0002479,3]
[331924489,1720854639004,-1037.75,0.00024799,2]
[331924490,1720854639014,-22183.87414748,0.000248,2]
[331924491,1720854639027,-151.0,0.000248,7]
[331924492,1720854639037,-478.573973,0.000248,7]
[331924493,1720854639048,-478.573973,0.000248,7]
[331924494,1720854639058,-533.493169,0.000248,7]
[331924495,1720854639067,-533.493169,0.000248,7]
[331924496,1720854639081,-156.0,0.0002482,7]
[331924497,1720854639090,-614.0,0.000249,2]
[331924498,1720854639099,-302.18418731,0.000249,2]
[331924499,1720854639108,-2105.65445129,0.000249,2]
[331924500,1720854639117,-2105.65445126,0.000249,2]
[331924501,1720854639126,-2105.65445126,0.000249,2]
[331924502,1720854639135,-2105.65445126,0.000249,2]
[331924503,1720854639147,-151.0,0.000249,7]
[331924504,1720854639156,-478.573973,0.000249,7]
[331924505,1720854639166,-478.573977,0.000249,7]
[331924506,1720854639177,-533.493169,0.000249,7]
[331924507,1720854639186,-533.493161,0.000249,7]
[331924508,1720854639195,-16680.2244339,0.00024921,3]
[331924509,1720854639204,-1037.75,0.0002493,2]
[331924510,1720854639214,-500.0,0.00024931,2]
[331924511,1720854639223,-176.53697163,0.00024931,2]
[331924512,1720854639233,-523.16,0.00024931,2]
[331924513,1720854639242,-503.59,0.00024931,2]
[331924514,1720854639252,-500.0,0.00024931,2]
[331924515,1720854639262,-500.0,0.00024931,2]
[331924516,1720854639271,-555.09805269,0.00024931,2]
[331924517,1720854639280,-500.0,0.00024931,2]
[331924518,1720854639290,-176.04576437,0.00024931,2]
[331924519,1720854639299,-552.0,0.00024931,2]
[331924520,1720854639308,-156.29075645,0.00024931,2]
[331924521,1720854639318,-503.35,0.00024931,2]
[331924522,1720854639327,-845.16,0.00024931,2]
[331924523,1720854639337,-648.15,0.00024931,2]
[331924524,1720854639346,-500.0,0.00024931,2]
[331924525,1720854639355,-500.0,0.00024931,2]
[331924526,1720854639364,-649.80207687,0.00024931,2]
[331924527,1720854639373,-280.42,0.00024931,2]
[331924528,1720854639384,-483.03,0.00024931,2]
[331924529,1720854639393,-500.0,0.00024931,2]
[331924530,1720854639403,-500.0,0.00024931,2]
[331924531,1720854639414,-500.0,0.00024931,2]
[331924532,1720854639423,-950.7,0.00024931,2]
[331924533,1720854639433,-500.0,0.00024931,2]
[331924534,1720854639444,-500.0,0.00024931,2]
[331924535,1720854639454,-500.0,0.00024931,2]
[331924536,1720854639463,-500.0,0.00024931,2]
[331924537,1720854639473,-500.0,0.00024931,2]
[331924538,1720854639482,-508.63445828,0.00024931,2]
[331924539,1720854639493,-500.0,0.00024931,2]
[331924540,1720854639503,-500.0,0.00024931,2]
[331924541,1720854639512,-500.0,0.00024931,2]
[331924542,1720854639522,-500.0,0.00024931,2]
[331924543,1720854639534,-1714.24,0.00024931,2]
[331924544,1720854639545,-500.0,0.00024931,2]
[331924545,1720854639554,-1213.13,0.00024931,2]
[331924546,1720854639564,-502.46,0.00024931,2]
[331924547,1720854639574,-500.0,0.00024931,2]
[331924548,1720854639584,-167.14,0.00024931,2]
[331924549,1720854639594,-500.0,0.00024931,2]
[331924550,1720854639603,-500.0,0.00024931,2]
[331924551,1720854639613,-500.0,0.00024931,2]
[331924552,1720854639623,-500.0,0.00024931,2]
[331924553,1720854639636,-515.11881733,0.00024931,2]
[331924554,1720854639648,-500.0,0.00024931,2]
[331924555,1720854639658,-18063.93,0.00024931,2]
[331924556,1720854639668,-500.0,0.00024931,2]
[331924557,1720854639678,-500.0,0.00024931,2]
[331924558,1720854639689,-500.0,0.00024931,2]
[331924559,1720854639699,-500.0,0.00024931,2]
[331924560,1720854639710,-2877.79,0.00024931,2]
[331924561,1720854639721,-500.0,0.00024931,2]
[331924562,1720854639733,-509.45008545,0.00024931,2]
[331924563,1720854639743,-500.0,0.00024931,2]
[331924564,1720854639754,-500.0,0.00024931,2]
[331924565,1720854639764,-500.0,0.00024931,2]
[331924566,1720854639774,-500.0,0.00024931,2]
[331924567,1720854639783,-500.0,0.00024931,2]
[331924568,1720854639794,-500.0,0.00024931,2]
[331924569,1720854639804,-301.37,0.00024931,2]
[331924570,1720854639815,-500.0,0.00024931,2]
[331924571,1720854639825,-500.0,0.00024931,2]
[331924572,1720854639835,-500.0,0.00024931,2]
[331924573,1720854639845,-500.0,0.00024931,2]
[331924574,1720854639856,-500.0,0.00024931,2]
[331924575,1720854639866,-500.0,0.00024931,2]
[331924576,1720854639876,-2714.44808847,0.00024963,2]
[331924577,1720854639888,-190.83926984,0.00025,2]
[331924578,1720854639899,-154.8086033,0.00025,2]
[331924579,1720854639909,-229.31956132,0.00025,2]
[331924580,1720854639919,-5186.85,0.00025,5]
[331924581,1720854639931,-422.29022427,0.00025,2]
[331924582,1720854639941,-260.5671497,0.00025,2]
[331924583,1720854639953,-1407.0,0.00025051,2]
[331924584,1720854639962,-250.0,0.00025072,2]
[331924585,1720854639972,-150.798,0.00025072,2]
[331924586,1720854639981,-302.18418731,0.00025149,2]
[331924587,1720854639992,-2714.44808847,0.00025166,2]
[331924588,1720854640002,-16680.2244339,0.00025195,3]
[331924589,1720854640011,-1037.75,0.00025204,2]
[331924590,1720854640021,-500.0,0.00025205,2]
[331924591,1720854640031,-523.16,0.00025205,2]
[331924592,1720854640041,-503.59,0.00025205,2]
[331924593,1720854640051,-500.0,0.00025205,2]
[331924594,1720854640061,-500.0,0.00025205,2]
[331924595,1720854640072,-500.0,0.00025205,2]
[331924596,1720854640084,-552.0,0.00025205,2]
[331924598,1720854640097,-503.35,0.00025205,2]
[331924599,1720854640108,-845.16,0.00025205,2]
[331924600,1720854640122,-648.15,0.00025205,2]
[331924602,1720854640132,-500.0,0.00025205,2]
[331924603,1720854640142,-500.0,0.00025205,2]
[331924604,1720854640153,-500.0,0.00025205,2]
[331924606,1720854640162,-500.0,0.00025205,2]
[331924607,1720854640172,-950.7,0.00025205,2]
[331924608,1720854640183,-217.38745298,0.00025205,2]
[331924609,1720854640194,-500.0,0.00025205,2]
[331924610,1720854640204,-500.0,0.00025205,2]
[331924611,1720854640214,-286.58,0.00025205,2]
[331924612,1720854640223,-204.6883836,0.00025205,2]
[331924613,1720854640232,-500.0,0.00025205,2]
[331924614,1720854640242,-500.0,0.00025205,2]
[331924615,1720854640251,-1714.24,0.00025205,2]
[331924616,1720854640260,-500.0,0.00025205,2]
[331924617,1720854640270,-1213.13,0.00025205,2]
[331924618,1720854640279,-502.46,0.00025205,2]
[331924619,1720854640291,-564.71,0.00025205,2]
[331924620,1720854640300,-500.0,0.00025205,2]
[331924621,1720854640312,-500.0,0.00025205,2]
[331924622,1720854640321,-500.0,0.00025205,2]
[331924623,1720854640330,-18063.93,0.00025205,2]
[331924624,1720854640339,-510.4355411,0.00025205,2]
[331924625,1720854640349,-500.0,0.00025205,2]
[331924626,1720854640359,-500.0,0.00025205,2]
[331924627,1720854640369,-508.5256993,0.00025205,2]
[331924628,1720854640379,-2877.79,0.00025205,2]
[331924629,1720854640391,-500.0,0.00025205,2]
[331924630,1720854640400,-514.10543152,0.00025205,2]
[331924631,1720854640410,-500.0,0.00025205,2]
[331924632,1720854640422,-616.17,0.00025205,2]
[331924633,1720854640436,-500.0,0.00025205,2]
[331924634,1720854640447,-586.21,0.00025205,2]
[331924635,1720854640458,-500.0,0.00025205,2]
[331924636,1720854640467,-500.0,0.00025205,2]
[331924637,1720854640477,-500.0,0.00025205,2]
[331924639,1720854640486,-500.0,0.00025205,2]
[331924641,1720854640497,-500.0,0.00025205,2]
[331924643,1720854640507,-175.8,0.00025276,2]
[331924645,1720854640518,-2714.44808847,0.00025369,2]
[331924647,1720854640529,-33360.4488678,0.0002539,3]
[331924649,1720854640539,-302.18418731,0.00025398,2]
[331924650,1720854640548,-21855.81720581,0.000254,5]
[331924652,1720854640558,-88888.0,0.000254,3]
[331924653,1720854640568,-16680.2244339,0.00025469,3]
[331924654,1720854640578,-1037.75,0.00025478,2]
[331924655,1720854640587,-500.0,0.00025479,2]
[331924656,1720854640596,-523.16,0.00025479,2]
[331924657,1720854640605,-503.59,0.00025479,2]
[331924659,1720854640615,-500.0,0.00025479,2]
[331924661,1720854640625,-347.69470027,0.00025479,2]
[331924663,1720854640638,-500.0,0.00025479,2]
[331924665,1720854640649,-552.0,0.00025479,2]
[331924667,1720854640658,-503.35,0.00025479,2]
[331924669,1720854640667,-845.16,0.00025479,2]
[331924670,1720854640676,-648.15,0.00025479,2]
[331924672,1720854640686,-500.0,0.00025479,2]
[331924674,1720854640696,-500.0,0.00025479,2]
[331924676,1720854640706,-449.52,0.00025479,2]
[331924677,1720854640715,-500.0,0.00025479,2]
[331924678,1720854640725,-950.7,0.00025479,2]
[331924680,1720854640735,-500.0,0.00025479,2]
[331924682,1720854640745,-500.0,0.00025479,2]
[331924683,1720854640755,-380.30960165,0.00025479,2]
[331924684,1720854640765,-500.0,0.00025479,2]
[331924685,1720854640774,-1714.24,0.00025479,2]
[331924686,1720854640784,-500.0,0.00025479,2]
[331924688,1720854640793,-1213.13,0.00025479,2]
[331924690,1720854640803,-502.46,0.00025479,2]
[331924691,1720854640812,-500.0,0.00025479,2]
[331924693,1720854640821,-572.07,0.00025479,2]
[331924695,1720854640831,-500.0,0.00025479,2]
[331924696,1720854640840,-18063.93,0.00025479,2]
[331924697,1720854640849,-500.0,0.00025479,2]
[331924698,1720854640858,-500.0,0.00025479,2]
[331924699,1720854640868,-2877.79,0.00025479,2]
[331924700,1720854640878,-500.0,0.00025479,2]
[331924702,1720854640890,-500.0,0.00025479,2]
[331924704,1720854640900,-500.0,0.00025479,2]
[331924706,1720854640910,-500.0,0.00025479,2]
[331924708,1720854640920,-173.17797501,0.00025479,2]
[331924709,1720854640929,-500.0,0.00025479,2]
[331924710,1720854640939,-500.0,0.00025479,2]
[331924712,1720854640948,-500.0,0.00025479,2]